bitfinex/quotes_BTCUSD_20240727
["timestamp","ask_amount","ask_price","bid_price","bid_amount"]
[1722115147689,0.0626,68602.0,68578.0,0.02432273]
[1722115147881,0.0626,68602.0,68589.0,0.233273]
[1722115148063,0.00188416,68596.0,68589.0,0.00954661]
[1722115148216,0.0626,68602.0,68594.0,0.116626]
[1722115148403,0.0626,68602.0,68582.0,0.00291557]
[1722115148611,0.00188416,68600.0,68591.0,0.116632]
[1722115148806,0.00188416,68598.0,68530.0,0.12364862]
[1722115149038,0.0626,68602.0,68517.0,0.07512979]
[1722115149039,0.00188416,68593.0,68580.0,0.00962609]
[1722115149236,0.00188416,68593.0,68585.0,0.116643]
[1722115149436,0.00188416,68602.0,68586.0,0.01248892]
[1722115149664,0.00188416,68611.0,68598.0,0.23324]
[1722115149870,0.00188416,68611.0,68599.0,0.023324]
[1722115150061,0.01709373,68616.0,68604.0,0.233222]
[1722115150272,0.01709373,68616.0,68599.0,0.023324]
[1722115150273,0.02287927,68608.0,68599.0,0.023324]
[1722115150476,0.02287927,68608.0,68600.0,0.031727]
[1722115150701,0.00188416,68605.0,68589.0,0.0607]
[1722115150879,0.00188416,68605.0,68591.0,0.116632]
[1722115151080,0.02287927,68608.0,68587.0,0.00709573]
[1722115151081,0.00188416,68601.0,68592.0,0.01237277]
[1722115151545,0.00188416,68601.0,68582.0,0.233296]
[1722115151546,0.00364417,68607.0,68585.0,0.233284]
[1722115151921,0.0639,68618.0,68576.0,0.07991584]
[1722115151922,0.02288023,68599.0,68587.0,0.45077872]
[1722115152120,0.02288023,68599.0,68586.0,0.0095731]
[1722115152121,0.00188416,68592.0,68586.0,0.0095731]
[1722115152333,0.00188416,68594.0,68588.0,0.00955544]
[1722115152536,0.1,68611.0,68573.0,0.233324]
[1722115152537,0.0825,68603.0,68575.0,0.07512979]
[1722115152694,0.0825,68603.0,68576.0,0.00849626]
[1722115152695,0.07512979,68597.0,68576.0,0.00849626]
[1722115152907,0.0825,68603.0,68582.0,0.07512979]
[1722115153107,0.0825,68603.0,68584.0,0.233287]
[1722115153315,0.0825,68603.0,68585.0,0.116643]
[1722115153471,0.08614455,68603.0,68585.0,0.00684234]
[1722115153854,0.00188416,68601.0,68589.0,0.116636]
[1722115154078,0.00705654,68609.0,68608.0,0.953928]
[1722115154280,0.45077872,68644.0,68608.0,0.46152259]
[1722115154482,0.01520957,68637.0,68609.0,0.01296577]
[1722115154693,0.00821,68652.0,68609.0,0.01296577]
[1722115154694,0.00188416,68646.0,68610.0,0.023]
[1722115154900,0.00188416,68646.0,68611.0,0.01294787]
[1722115154901,0.1384,68641.0,68611.0,0.01294787]
[1722115155107,0.1384,68641.0,68613.0,0.00011584]
[1722115155322,0.1384,68641.0,68620.0,0.116583]
[1722115155323,0.00188416,68640.0,68620.0,0.116583]
[1722115155528,0.00684221,68648.0,68612.0,0.01694565]
[1722115155529,0.01520957,68644.0,68631.0,0.233129]
[1722115155734,0.02287098,68636.0,68625.0,0.00011584]
[1722115155936,0.02287098,68636.0,68635.0,0.582792]
[1722115156107,0.06518416,68649.0,68630.0,0.00011584]
[1722115156316,0.00084,68648.0,68640.0,0.116549]
[1722115156521,0.00084,68648.0,68640.0,0.01263713]
[1722115156722,0.00084,68648.0,68641.0,0.00976944]
[1722115156723,0.00188416,68643.0,68641.0,0.00976944]
[1722115156970,0.00188416,68644.0,68641.0,0.00651296]
[1722115157395,0.00084,68648.0,68625.0,0.00700248]
[1722115157396,0.00188416,68641.0,68625.0,0.00700248]
[1722115157564,0.07596979,68648.0,68621.0,0.116581]
[1722115157565,0.00188416,68638.0,68621.0,0.116581]
[1722115157765,0.07596979,68648.0,68627.0,0.00989288]
[1722115157766,0.00188416,68637.0,68627.0,0.00989288]
[1722115157977,0.00821,68652.0,68651.0,0.233062]
[1722115158191,0.00821,68652.0,68651.0,1.1996309]
[1722115158410,0.00821,68652.0,68651.0,0.97201219]
[1722115159269,0.03106911,68652.0,68651.0,1.20507419]
[1722115159483,0.03106911,68652.0,68651.0,1.27833376]
[1722115159691,0.03106911,68652.0,68651.0,1.38033376]
[1722115159948,0.03106911,68652.0,68651.0,1.53163376]
[1722115160122,0.00821,68652.0,68651.0,1.53363376]
[1722115160352,0.00821,68652.0,68651.0,0.82739829]
[1722115160554,0.00821,68652.0,68651.0,0.59233629]
[1722115160754,0.00821,68652.0,68651.0,0.35927429]
[1722115160958,0.00821,68652.0,68651.0,0.59233629]
[1722115161386,0.00821,68652.0,68651.0,0.82539829]
[1722115161607,0.00821,68652.0,68651.0,0.90886832]
[1722115162024,0.00821,68652.0,68651.0,0.35927429]
[1722115162235,0.00821,68652.0,68651.0,0.12621229]
[1722115162460,0.00821,68652.0,68651.0,0.35927429]
[1722115162873,0.00821,68652.0,68651.0,0.00968129]
[1722115163081,0.00821,68652.0,68651.0,0.582655]
[1722115163284,0.03107059,68652.0,68651.0,0.18447779]
[1722115163486,0.03107059,68652.0,68651.0,0.65060179]
[1722115164561,0.00821,68652.0,68651.0,0.65060179]
[1722115164772,0.14661,68652.0,68651.0,0.00968129]
[1722115165189,0.14661,68652.0,68620.0,0.07512979]
[1722115165421,0.0015542,68650.0,68629.0,0.233136]
[1722115165632,0.0015542,68650.0,68611.0,0.061]
[1722115165633,0.00145288,68649.0,68630.0,0.02404391]
[1722115165844,0.00145288,68649.0,68630.0,0.00657761]
[1722115165845,0.0015542,68648.0,68630.0,0.00657761]
[1722115166055,0.0015542,68648.0,68638.0,0.116553]
[1722115166281,0.0015542,68648.0,68639.0,0.00978707]
[1722115166282,0.00145288,68647.0,68639.0,0.00978707]
[1722115166492,0.0015542,68646.0,68639.0,0.00978707]
[1722115166690,0.0015542,68644.0,68621.0,0.233163]
[1722115166920,0.00145288,68643.0,68623.0,0.116578]
[1722115167134,0.00145288,68643.0,68622.0,0.10284351]
[1722115167135,0.0015542,68641.0,68622.0,0.10284351]
[1722115167338,0.0015542,68639.0,68624.0,0.00561289]
[1722115167599,0.06275288,68638.0,68623.0,0.00967816]
[1722115167799,0.06275288,68638.0,68610.0,0.233198]
[1722115167800,0.0015542,68636.0,68625.0,0.00644035]
[1722115168021,0.00145288,68635.0,68611.0,0.24030346]
[1722115168234,0.07512979,68633.0,68612.0,0.04735125]
[1722115168460,0.0015542,68631.0,68612.0,0.0065168]
[1722115168665,0.00145288,68630.0,68605.0,0.00716051]
[1722115168876,0.0015542,68629.0,68607.0,0.116606]
[1722115169078,0.0015542,68627.0,68608.0,0.00981049]
[1722115169327,0.00145288,68626.0,68608.0,0.12641449]
[1722115169547,0.0015542,68625.0,68609.0,0.04940873]
[1722115169778,0.0772,68623.0,68609.0,0.00653444]
[1722115169993,0.00145288,68622.0,68609.0,0.00653444]
[1722115170225,0.00145288,68622.0,68599.0,0.116618]
[1722115170429,0.00145288,68622.0,68600.0,0.034987]
[1722115170642,0.00145288,68622.0,68600.0,0.00988109]
[1722115170846,0.00145288,68622.0,68596.0,0.116623]
[1722115171065,0.02287775,68617.0,68601.0,0.00987227]
[1722115171276,0.00145288,68616.0,68584.0,0.07512979]
[1722115171498,0.00145288,68616.0,68581.0,0.7]
[1722115171723,0.00145288,68616.0,68577.0,0.07512979]
[1722115171724,0.00145288,68616.0,68594.0,0.116627]
[1722115171942,0.00145288,68616.0,68595.0,0.00661682]
[1722115172158,0.07512979,68615.0,68595.0,0.00992523]
[1722115172362,0.06765288,68614.0,68592.0,0.23326]
[1722115172583,0.06765288,68614.0,68585.0,0.45077872]
[1722115172584,0.02287928,68611.0,68596.0,0.0099164]
[1722115172823,0.00145288,68610.0,68593.0,0.12325659]
[1722115173033,0.0772,68609.0,68597.0,0.00660505]
[1722115173245,0.0772,68609.0,68594.0,0.00993406]
[1722115173246,0.00145288,68608.0,68594.0,0.00993406]
[1722115173449,0.00145288,68608.0,68598.0,0.00659916]
[1722115173656,0.00145288,68608.0,68584.0,0.116644]
[1722115173657,0.00145288,68608.0,68585.0,0.116642]
[1722115173879,0.00145288,68608.0,68578.0,0.45077872]
[1722115173880,0.07512979,68600.0,68578.0,0.45077872]
[1722115174118,0.00145288,68599.0,68586.0,0.00666979]
[1722115174322,0.082,68598.0,68579.0,0.04507787]
[1722115174526,0.0015542,68596.0,68580.0,0.05629077]
[1722115174735,0.00145288,68595.0,68580.0,0.00670511]
[1722115174946,0.0015542,68594.0,68580.0,0.00670511]
[1722115175154,0.06305288,68593.0,68580.0,0.01233651]
[1722115175375,0.0015542,68592.0,68581.0,0.00669922]
[1722115175600,0.0015542,68590.0,68571.0,0.002]
[1722115175798,0.00145288,68589.0,68571.0,0.118667]
[1722115176003,0.0015542,68588.0,68572.0,0.15870972]
[1722115176207,0.0015542,68588.0,68572.0,0.15871072]
[1722115176422,0.0015542,68588.0,68572.0,0.04204572]
[1722115176423,0.00145288,68587.0,68572.0,0.04204572]
[1722115176657,0.0015542,68589.0,68574.0,0.45077872]
[1722115176880,0.0015542,68589.0,68588.0,0.349914]
[1722115177081,0.02288441,68590.0,68588.0,0.04164942]
[1722115177291,0.02288441,68590.0,68588.0,0.00665802]
[1722115177495,0.02288441,68590.0,68572.0,0.00291592]
[1722115177496,0.00145288,68601.0,68577.0,0.233311]
[1722115177709,0.00145288,68601.0,68585.0,0.116642]
[1722115177710,0.0015542,68597.0,68585.0,0.116642]
[1722115177924,0.0015542,68597.0,68586.0,0.04457957]
[1722115178136,0.0015542,68597.0,68586.0,0.00958547]
[1722115178387,0.0015542,68597.0,68590.0,0.233267]
[1722115178599,0.06880837,68602.0,68594.0,0.116627]
[1722115178801,0.06880837,68602.0,68595.0,0.05860735]
[1722115179006,0.0616,68602.0,68595.0,0.06522417]
[1722115179230,0.00712752,68608.0,68595.0,0.00661682]
[1722115179450,0.082,68609.0,68595.0,0.00661682]
[1722115179655,0.082,68609.0,68605.0,0.116608]
[1722115179869,0.082,68609.0,68603.0,0.233224]
[1722115180326,0.01520957,68630.0,68604.0,0.00656386]
[1722115180327,0.1436,68629.0,68604.0,0.00656386]
[1722115180562,0.1436,68629.0,68605.0,0.07512979]
[1722115180788,0.1436,68629.0,68621.0,0.233161]
[1722115180995,0.1436,68629.0,68606.0,0.08681298]
[1722115180996,0.1436,68629.0,68607.0,0.00291217]
[1722115181200,0.1436,68629.0,68622.0,0.00968698]
[1722115181412,0.1436,68629.0,68626.0,0.116573]
[1722115181618,0.1436,68629.0,68623.0,0.00967816]
[1722115181853,0.1436,68629.0,68627.0,0.00964288]
[1722115182053,0.1436,68629.0,68608.0,0.03249402]
[1722115182054,0.16647186,68629.0,68613.0,0.233191]
[1722115182257,0.16647186,68629.0,68606.0,0.24092798]
[1722115182258,0.16647186,68629.0,68628.0,0.00963406]
[1722115182467,0.16647186,68629.0,68591.0,0.0659]
[1722115182468,0.1436,68629.0,68591.0,0.0659]
[1722115182685,0.1436,68629.0,68597.0,0.68402172]
[1722115182686,0.1015542,68628.0,68597.0,0.68402172]
[1722115182898,0.17668399,68628.0,68601.0,0.233232]
[1722115183163,0.17668399,68628.0,68598.0,0.0937239]
[1722115183164,0.17668399,68628.0,68602.0,0.00657563]
[1722115183379,0.1436,68608.0,68602.0,0.00986344]
[1722115183788,0.1436,68608.0,68588.0,0.116638]
[1722115183789,0.1015542,68607.0,68578.0,0.002]
[1722115184198,0.0015542,68607.0,68606.0,0.583037]
[1722115184627,0.082,68619.0,68609.0,0.233205]
[1722115184821,0.0616,68626.0,68611.0,0.233198]
[1722115184822,0.0015542,68625.0,68611.0,0.233198]
[1722115185227,0.02287468,68617.0,68616.0,0.116589]
[1722115185431,0.02287468,68617.0,68616.0,0.34977]
[1722115185640,0.02287468,68617.0,68616.0,0.35950991]
[1722115185847,0.02287468,68617.0,68616.0,0.4187803]
[1722115186249,0.02287468,68617.0,68616.0,0.6519613]
[1722115186784,0.02287468,68617.0,68616.0,0.00973991]
[1722115187234,0.02287468,68617.0,68616.0,0.00649327]
[1722115187410,0.02287468,68617.0,68616.0,0.0097399]
[1722115187614,0.0015542,68616.0,68614.0,0.116593]
[1722115187813,0.00145288,68629.0,68610.0,0.1166]
[1722115187814,0.0015542,68628.0,68610.0,0.1166]
[1722115188016,0.07512979,68622.0,68603.0,0.00727374]
[1722115188242,0.07512979,68622.0,68589.0,0.0659]
[1722115188243,0.0616,68619.0,68596.0,0.12373899]
[1722115188441,0.0015542,68617.0,68594.0,0.45170272]
[1722115188815,0.07512979,68614.0,68594.0,0.000924]
[1722115189025,0.00300708,68613.0,68594.0,0.000924]
[1722115189460,0.00300708,68613.0,68595.0,0.0117553]
[1722115189710,0.0607,68612.0,68595.0,0.01837212]
[1722115189908,0.0015542,68611.0,68595.0,0.0117553]
[1722115190120,0.0015542,68611.0,68596.0,0.00661093]
[1722115190335,0.0015542,68611.0,68596.0,0.00990757]
[1722115190548,0.0015542,68611.0,68605.0,0.116608]
[1722115190761,0.0015542,68611.0,68606.0,0.00982814]
[1722115190762,0.02287693,68608.0,68606.0,0.00982814]
[1722115190967,0.0015542,68607.0,68606.0,0.00655209]
[1722115191217,0.0015542,68607.0,68597.0,0.233246]
[1722115191437,0.0015542,68607.0,68598.0,0.140036]
[1722115191635,0.0015542,68607.0,68598.0,0.12651775]
[1722115191838,0.0015542,68607.0,68598.0,0.12321228]
[1722115192015,0.0015542,68607.0,68598.0,0.00659328]
[1722115192251,0.0015542,68607.0,68598.0,0.00988992]
[1722115192453,0.00145288,68607.0,68594.0,0.000924]
[1722115192674,0.07512979,68601.0,68599.0,0.00659328]
[1722115192885,0.0245542,68610.0,68594.0,0.000924]
[1722115192886,0.00300708,68600.0,68594.0,0.000924]
[1722115193320,0.00300708,68600.0,68595.0,0.00661682]
[1722115193525,0.16956757,68599.0,68594.0,0.000924]
[1722115193641,0.03267465,68598.0,68594.0,0.000924]
[1722115193839,0.02966757,68597.0,68594.0,0.000924]
[1722115194038,0.02600708,68596.0,68594.0,0.000924]
[1722115194293,0.17366757,68595.0,68594.0,0.000924]
[1722115194491,0.27522177,68595.0,68571.0,0.00924544]
[1722115194709,0.27522177,68595.0,68579.0,0.45077872]
[1722115194710,0.15412045,68594.0,68579.0,0.45077872]
[1722115194913,0.15412045,68594.0,68580.0,0.00670511]
[1722115194914,0.07512979,68591.0,68580.0,0.00670511]
[1722115195051,0.07512979,68591.0,68571.0,0.002]
[1722115195052,0.05567465,68590.0,68571.0,0.002]
[1722115195253,0.0608,68588.0,68571.0,0.002]
[1722115195509,0.0832,68586.0,68571.0,0.002]
[1722115195647,0.03112045,68585.0,68571.0,0.002]
[1722115195859,0.00145288,68585.0,68571.0,0.002]
[1722115196067,0.0832,68586.0,68571.0,0.002]
[1722115196068,0.02981005,68584.0,68571.0,0.002]
[1722115196303,0.02981005,68584.0,68572.0,0.03037852]
[1722115196690,0.02981005,68584.0,68576.0,0.116658]
[1722115196897,0.02980573,68583.0,68577.0,0.00672277]
[1722115197117,0.02980573,68583.0,68571.0,0.235334]
[1722115197118,0.07512979,68578.0,68571.0,0.002]
[1722115197321,0.03125803,68577.0,68571.0,0.002]
[1722115197524,0.02962965,68576.0,68571.0,0.002]
[1722115197727,0.07658267,68575.0,68571.0,0.002]
[1722115198068,0.17658267,68575.0,68571.0,0.002]
[1722115198672,0.00145288,68574.0,68571.0,0.002]
[1722115199036,0.144,68573.0,68571.0,0.002]
[1722115199243,0.144,68571.0,68554.0,0.00902]
[1722115199437,0.21912979,68562.0,68554.0,0.00902]
[1722115199640,0.21912979,68562.0,68551.0,0.002]
[1722115199641,0.350098,68552.0,68551.0,0.002]
[1722115199825,0.26251476,68552.0,68551.0,0.002]
[1722115200045,0.60356664,68552.0,68551.0,0.002]
[1722115200251,0.6423453,68552.0,68551.0,0.002]
[1722115200494,0.6423453,68552.0,68545.0,0.0152806]
[1722115200495,0.116709,68546.0,68545.0,0.0152806]
[1722115200705,0.04726864,68546.0,68525.0,0.00902]
[1722115200852,0.27776996,68545.0,68525.0,0.00902]
[1722115201044,0.116716,68542.0,68525.0,0.00902]
[1722115201250,0.37156888,68542.0,68525.0,0.00902]
[1722115201498,0.0015542,68541.0,68525.0,0.00902]
[1722115201707,0.116742,68527.0,68525.0,0.00902]
[1722115201966,0.1533,68525.0,68512.0,0.00902]
[1722115202135,0.029,68526.0,68510.0,0.009031]
[1722115202136,0.0015542,68523.0,68510.0,0.009031]
[1722115202316,0.0832,68521.0,68510.0,0.009031]
[1722115202514,0.0015542,68519.0,68510.0,0.009031]
[1722115202675,0.00145288,68518.0,68510.0,0.009031]
[1722115202881,0.0623542,68517.0,68510.0,0.009031]
[1722115203081,0.0832,68515.0,68510.0,0.009031]
[1722115203287,0.0015542,68513.0,68510.0,0.009031]
[1722115203705,0.00300708,68513.0,68510.0,0.009031]
[1722115204146,0.0015542,68513.0,68510.0,0.009031]
[1722115204321,0.02591995,68513.0,68510.0,0.009031]
[1722115204741,0.02591995,68513.0,68496.0,0.109346]
[1722115204920,0.02591995,68513.0,68497.0,0.0109946]
[1722115205121,0.02591995,68513.0,68497.0,0.00959034]
[1722115205321,0.02591995,68513.0,68491.0,0.002]
[1722115205523,0.00300708,68513.0,68498.0,0.00958148]
[1722115205770,0.0015542,68511.0,68498.0,0.00958148]
[1722115205972,0.0015542,68511.0,68491.0,0.002]
[1722115205973,0.00145288,68510.0,68491.0,0.002]
[1722115206207,0.0015542,68509.0,68491.0,0.002]
[1722115206411,0.00145288,68508.0,68491.0,0.002]
[1722115206734,0.0015542,68509.0,68495.0,0.00960804]
[1722115206884,0.0015542,68510.0,68496.0,0.0129007]
[1722115207090,0.00145288,68509.0,68491.0,0.002]
[1722115207302,0.0015542,68508.0,68497.0,0.00959034]
[1722115207584,0.0015542,68508.0,68498.0,0.01269893]
[1722115207790,0.1,68516.0,68498.0,0.01269893]
[1722115207791,0.0832,68557.0,68546.0,0.116708]
[1722115208137,0.45077872,68550.0,68536.0,0.0643]
[1722115208252,0.09028732,68557.0,68537.0,0.00291755]
[1722115208483,0.002,68579.0,68537.0,0.00291755]
[1722115208484,0.144,68570.0,68537.0,0.00291755]
[1722115208888,0.144,68570.0,68556.0,0.116692]
[1722115209294,0.144,68570.0,68557.0,0.11669]
[1722115209487,0.144,68570.0,68555.0,0.116693]
[1722115209752,0.002,68579.0,68556.0,0.00291719]
[1722115210042,0.002,68579.0,68556.0,0.07804698]
[1722115210245,0.002,68579.0,68570.0,0.233335]
[1722115210395,0.002,68579.0,68577.0,0.116656]
[1722115210594,0.002,68579.0,68573.0,0.233327]
[1722115210979,0.002,68579.0,68575.0,0.11666]
[1722115211213,0.002,68579.0,68576.0,0.0349987]
[1722115211405,0.002,68579.0,68578.0,0.583275]
[1722115212071,0.002,68579.0,68578.0,0.881285]
[1722115212540,0.002,68579.0,68578.0,0.647975]
[1722115212798,0.002,68579.0,68570.0,0.07187957]
[1722115213026,0.02488342,68579.0,68570.0,0.07187957]
[1722115213275,0.02488342,68579.0,68570.0,0.0647]
[1722115213471,0.02488342,68579.0,68571.0,0.0298043]
[1722115213661,0.02488342,68579.0,68576.0,0.116658]
[1722115213860,0.02488342,68579.0,68573.0,0.233324]
[1722115214102,0.02488342,68579.0,68557.0,0.0222147]
[1722115214103,0.07512979,68577.0,68557.0,0.00731737]
[1722115214307,0.07512979,68577.0,68543.0,0.0635]
[1722115214308,0.07512979,68561.0,68543.0,0.0635]
[1722115214531,0.07512979,68560.0,68543.0,0.0635]
[1722115214731,0.07512979,68570.0,68534.0,0.233458]
[1722115214732,0.123,68569.0,68534.0,0.070798]
[1722115214878,0.07512979,68563.0,68534.0,0.0635]
[1722115215045,0.07512979,68563.0,68528.0,0.31088]
[1722115215046,0.07512979,68556.0,68528.0,0.31088]
[1722115215246,0.07512979,68556.0,68518.0,0.0635]
[1722115215247,0.1431,68546.0,68518.0,0.0635]
[1722115215444,0.1431,68546.0,68528.0,0.11674]
[1722115215703,0.1431,68546.0,68518.0,0.0635]
[1722115215949,0.1431,68546.0,68530.0,0.116736]
[1722115216154,0.1431,68546.0,68532.0,0.116733]
[1722115216356,0.1431,68546.0,68519.0,0.05988079]
[1722115216538,0.1431,68546.0,68524.0,0.233491]
[1722115216852,0.1431,68546.0,68528.0,0.116739]
[1722115217055,0.1431,68546.0,68529.0,0.151761]
[1722115217288,0.1431,68546.0,68529.0,0.035023]
[1722115217531,0.1431,68546.0,68519.0,0.05988079]
[1722115217532,0.07512979,68537.0,68519.0,0.05988079]
[1722115217733,0.07512979,68537.0,68498.0,0.002]
[1722115217734,0.1,68545.0,68520.0,0.45369685]
[1722115217938,0.1,68545.0,68521.0,0.04536969]
[1722115218274,0.1,68545.0,68526.0,0.233485]
[1722115218476,0.1,68545.0,68521.0,0.04536969]
[1722115218690,0.02290148,68541.0,68528.0,0.23348]
[1722115218932,0.02290148,68541.0,68530.0,0.116735]
[1722115219133,0.02290148,68541.0,68518.0,0.07512979]
[1722115219134,0.02290148,68541.0,68523.0,0.00291796]
[1722115219336,0.02290148,68541.0,68534.0,0.116729]
[1722115219650,0.02290148,68541.0,68523.0,0.01072274]
[1722115219651,0.02290148,68541.0,68540.0,0.11672]
[1722115220062,0.0652,68554.0,68539.0,0.116721]
[1722115220280,0.0652,68554.0,68540.0,0.03517242]
[1722115220482,0.07512979,68550.0,68538.0,0.0015542]
[1722115220735,0.07512979,68550.0,68523.0,0.12455278]
[1722115220736,0.07512979,68543.0,68523.0,0.00780478]
[1722115220927,0.07512979,68543.0,68516.0,0.45077872]
[1722115221166,0.0779,68542.0,68516.0,0.45077872]
[1722115221377,0.07512979,68532.0,68511.0,0.000924]
[1722115221531,0.07512979,68532.0,68512.0,0.0117699]
[1722115221732,0.07512979,68532.0,68511.0,0.000924]
[1722115222131,0.1,68534.0,68511.0,0.000924]
[1722115222744,0.07512979,68536.0,68511.0,0.000924]
[1722115222945,0.023,68535.0,68511.0,0.000924]
[1722115223147,0.023,68535.0,68511.0,0.0243717]
[1722115223380,0.0779,68556.0,68526.0,0.07512979]
[1722115223537,0.45077872,68543.0,68527.0,0.00751298]
[1722115223740,0.07512979,68555.0,68520.0,0.233507]
[1722115223937,0.03078155,68554.0,68513.0,0.1015542]
[1722115224305,0.11669,68558.0,68513.0,0.1015542]
[1722115224306,0.0779,68577.0,68553.0,0.07512979]
[1722115224515,0.45077872,68567.0,68566.0,0.116675]
[1722115224722,0.002,68579.0,68567.0,0.0116675]
[1722115224926,0.002,68579.0,68558.0,0.0774]
[1722115224927,0.02289028,68572.0,68571.0,0.116667]
[1722115225132,0.02289028,68572.0,68571.0,0.413501]
[1722115225279,0.02289028,68572.0,68571.0,0.180167]
[1722115225478,0.02289028,68572.0,68571.0,0.413501]
[1722115225703,0.02289028,68572.0,68571.0,0.0635]
[1722115225908,0.02289028,68572.0,68571.0,0.2215188]
[1722115226114,0.02289028,68572.0,68571.0,0.10668692]
[1722115226324,0.02289028,68572.0,68571.0,0.04318692]
[1722115226667,0.02289028,68572.0,68565.0,0.04318692]
[1722115227228,0.02289028,68572.0,68571.0,0.116667]
[1722115227487,0.02289028,68572.0,68571.0,0.1516687]
[1722115227686,0.02289028,68572.0,68571.0,0.3850027]
[1722115227833,0.02289028,68572.0,68571.0,0.1516687]
[1722115228196,0.02289028,68572.0,68571.0,0.0350017]
[1722115228493,0.02289028,68572.0,68570.0,0.116668]
[1722115228697,0.02289028,68572.0,68565.0,0.04318692]
[1722115229348,0.02289028,68572.0,68548.0,0.04318692]
[1722115229349,0.0787,68570.0,68548.0,0.04318692]
[1722115229546,0.0787,68570.0,68550.0,0.45077872]
[1722115229673,0.07512979,68563.0,68536.0,0.0612]
[1722115230057,0.07512979,68563.0,68543.0,0.116713]
[1722115230308,0.07512979,68556.0,68536.0,0.116726]
[1722115230478,0.07512979,68556.0,68528.0,0.0612]
[1722115230689,0.07512979,68556.0,68534.0,0.116729]
[1722115230892,0.1,68562.0,68540.0,0.23344]
[1722115231160,0.1,68562.0,68540.0,0.00291726]
[1722115231325,0.1,68562.0,68547.0,0.116706]
[1722115231537,0.1,68562.0,68544.0,0.233425]
[1722115231741,0.1,68567.0,68548.0,0.116706]
[1722115231948,0.1,68569.0,68547.0,0.116708]
[1722115232164,0.1,68569.0,68549.0,0.00618993]
[1722115232362,0.03079575,68568.0,68548.0,0.01848391]
[1722115232565,0.1,68569.0,68550.0,0.00618693]
[1722115232767,0.1,68569.0,68552.0,0.116698]
[1722115232973,0.1,68569.0,68551.0,0.233402]
[1722115232974,0.0787,68570.0,68555.0,0.116694]
[1722115233176,0.0787,68570.0,68553.0,0.04241706]
[1722115233177,0.02289357,68565.0,68553.0,0.04241706]
[1722115233379,0.02289357,68565.0,68556.0,0.00616898]
[1722115233584,0.02289357,68565.0,68553.0,0.0362391]
[1722115233585,0.07512979,68564.0,68553.0,0.0362391]
[1722115233762,0.02289357,68565.0,68552.0,0.116699]
[1722115233980,0.02289357,68565.0,68532.0,0.0015542]
[1722115233981,0.02289357,68565.0,68560.0,0.116685]
[1722115234127,0.02289357,68565.0,68554.0,0.00617497]
[1722115234128,0.02289357,68565.0,68561.0,0.116683]
[1722115234330,0.02289357,68565.0,68562.0,0.0116683]
[1722115234533,0.02289357,68565.0,68562.0,0.01781933]
[1722115234763,0.002,68579.0,68562.0,0.12283303]
[1722115235015,0.002,68579.0,68563.0,0.11668]
[1722115235158,0.002,68579.0,68562.0,0.00615103]
[1722115235513,0.002,68579.0,68564.0,0.00614505]
[1722115235712,0.002,68579.0,68563.0,0.00614804]
[1722115236061,0.00916918,68579.0,68565.0,0.00614206]
[1722115236268,0.03083931,68578.0,68564.0,0.00614505]
[1722115236490,0.07512979,68572.0,68565.0,0.00614206]
[1722115236754,0.07512979,68572.0,68553.0,0.233395]
[1722115236876,0.07512979,68572.0,68566.0,0.00613907]
[1722115237074,0.07512979,68572.0,68550.0,0.233404]
[1722115237075,0.1,68577.0,68554.0,0.116696]
[1722115237304,0.1,68577.0,68555.0,0.04118197]
[1722115237305,0.03086351,68576.0,68555.0,0.04118197]
[1722115238269,0.1,68578.0,68555.0,0.03501]
[1722115238270,0.09802189,68571.0,68555.0,0.03501]
[1722115238417,0.09802189,68571.0,68549.0,0.233406]
[1722115238418,0.03086351,68570.0,68551.0,0.116701]
[1722115238621,0.03086351,68570.0,68556.0,0.00616898]
[1722115238877,0.03086351,68570.0,68547.0,0.00291698]
[1722115239187,0.03086351,68570.0,68553.0,0.233393]
[1722115239316,0.03086351,68569.0,68555.0,0.116694]
[1722115239659,0.03091691,68568.0,68554.0,0.14620927]
[1722115239862,0.1,68578.0,68556.0,0.00616898]
[1722115240061,0.08429897,68579.0,68555.0,0.12286497]
[1722115240062,0.03091887,68577.0,68555.0,0.12286497]
[1722115240309,0.08429897,68579.0,68550.0,0.233405]
[1722115240310,0.03091887,68576.0,68554.0,0.116695]
[1722115240581,0.03091887,68575.0,68556.0,0.00616898]
[1722115240757,0.03091887,68575.0,68555.0,0.18121577]
[1722115240922,0.1,68578.0,68557.0,0.00616599]
[1722115241126,0.1,68578.0,68555.0,0.0583498]
[1722115241127,0.03092434,68574.0,68556.0,0.00616898]
[1722115241393,0.1,68578.0,68558.0,0.006163]
[1722115241569,0.1,68578.0,68557.0,0.01812158]
[1722115241570,0.03092483,68573.0,68557.0,0.00616599]
[1722115241774,0.03092483,68577.0,68554.0,0.116695]
[1722115241935,0.03092483,68576.0,68558.0,0.006163]
[1722115242147,0.03092483,68575.0,68559.0,0.0122858]
[1722115242353,0.03092483,68574.0,68559.0,0.01844581]
[1722115242586,0.1,68578.0,68559.0,0.01844581]
[1722115242587,0.02289338,68572.0,68559.0,0.01844581]
[1722115242798,0.03092483,68571.0,68559.0,0.01844581]
[1722115243140,0.02289338,68572.0,68559.0,0.00616001]
[1722115243141,0.07512979,68570.0,68559.0,0.00616001]
[1722115243347,0.03093183,68569.0,68550.0,0.116702]
[1722115243504,0.03093183,68569.0,68560.0,0.00615702]
[1722115243709,0.03093183,68569.0,68547.0,0.233415]
[1722115243911,0.07512979,68563.0,68561.0,0.00615403]
[1722115244223,0.07512979,68563.0,68541.0,0.315036]
[1722115244224,0.1,68568.0,68541.0,0.140072]
[1722115244424,0.03093705,68567.0,68543.0,0.116714]
[1722115244585,0.03093705,68567.0,68544.0,0.1657339]
[1722115244766,0.03093705,68567.0,68544.0,0.05522679]
[1722115245378,0.03093705,68566.0,68544.0,0.05522679]
[1722115245584,0.03093705,68565.0,68545.0,0.02535418]
[1722115245823,0.03093705,68564.0,68545.0,0.03155608]
[1722115246047,0.03093705,68563.0,68545.0,0.03155608]
[1722115246266,0.03093705,68562.0,68545.0,0.03155608]
[1722115246463,0.03093705,68561.0,68546.0,0.0278892]
[1722115246684,0.03093705,68560.0,68546.0,0.0278892]
[1722115246823,0.03093705,68559.0,68547.0,0.00619591]
[1722115247034,0.03093705,68558.0,68548.0,0.0083107]
[1722115247502,0.03089078,68557.0,68549.0,0.00618993]
[1722115248266,0.03089078,68557.0,68538.0,0.178123]